[Event "Fagernes Chess GM-Swiss 2025"]
[Site "Fagernes"]
[Date "2025.04.19"]
[Round "8.28"]
[White "Lilliehook, Victor"]
[Black "Holand, Per Fredrik"]
[Result "0-1"]
[Annotator "NA RC"]
[ECO "B40"]
[WhiteElo "1993"]
[BlackElo "2070"]
[PlyCount "84"]
[EventDate "2025.04.12"]
[EventCountry "NOR"]
[SourceTitle "playchess.com"]
[Source "ChessBase"]
[SourceQuality "1"]
[TimeControl "40/6000+30:2400+30"]

1. e4 {[%emt 0:00:01]} e6 {[%emt 0:00:06]} 2. d3 {[%emt 0:00:08]} c5 {[%emt 0:00:18]} 3. Nf3 {[%emt 0:00:09]} b6 {[%emt 0:00:20]} 4. g3 {[%emt 0:00:20]} Bb7 {[%emt 0:00:11]} 5. Bg2 {[%emt 0:00:24]} Nf6 {[%emt 0:01:39]} 6. Qe2 {[%emt 0:05:55]} d5 {[%emt 0:00:47]} 7. e5 {[%emt 0:01:06]} Nfd7 {[%emt 0:00:06]} 8. c4 {[%emt 0:00:21]} dxc4 {[%emt 0:01:25]} 9. dxc4 {[%emt 0:00:25]} Qc7 {[%emt 0:00:58]} 10. O-O {[%emt 0:00:39]} Nc6 {[%emt 0:00:08]} 11. Bf4 {[%emt 0:02:55]} h6 {[%emt 0:00:33]} 12. h4 {[%emt 0:00:31]} Be7 {[%emt 0:10:49]} 13. Re1 {[%emt 0:02:42]} g5 {[%emt 0:02:31]} 14. hxg5 {[%emt 0:09:36]} hxg5 {[%emt 0:00:06]} 15. Nxg5 {[%emt 0:11:11]} Nd4 {[%emt 0:01:40]} 16. Qd1 {[%emt 0:01:19]} Bxg5 {[%emt 0:00:16]} 17. Bxg5 {[%emt 0:00:07]} Bxg2 {[%emt 0:00:12]} 18. Kxg2 {[%emt 0:00:49]} Qc6+ {[%emt 0:00:46]} 19. f3 {[%emt 0:01:21]} Nxf3 {[%emt 0:00:36]} 20. Qxf3 {[%emt 0:02:59]} Rh2+ {[%emt 0:00:07]} 21. Kxh2 {[%emt 0:00:06]} Qxf3 {[%emt 0:00:06]} 22. Nd2 {[%emt 0:04:10]} Qf2+ {[%emt 0:00:10]} 23. Kh1 {[%emt 0:02:42]} Qxg3 {[%emt 0:00:08]} 24. Ne4 {[%emt 0:00:59]} Qh3+ {[%emt 0:01:02]} 25. Kg1 {[%emt 0:00:02]} f5 {[%emt 0:02:53]} 26. exf6 {[%emt 0:02:26]} O-O-O {[%emt 0:01:42]} 27. Re3 {[%emt 0:17:58]} Qg4+ {[%emt 0:00:08]} 28. Kf2 {[%emt 0:01:18]} Rh8 {[%emt 0:09:30]} 29. Rf1 {[%emt 0:06:36]} Rh5 {[%emt 0:03:01]} 30. f7 {[%emt 0:06:36]} Rxg5 {[%emt 0:01:12]} 31. Nxg5 {[%emt 0:01:41]} Qxg5 {[%emt 0:00:11]} 32. Rg3 {[%emt 0:13:40]} Qd2+ {[%emt 0:01:47]} 33. Kg1 {[%emt 0:01:15]} Nf8 {[%emt 0:00:27]} 34. Rg8 {[%emt 0:00:52]} Qd4+ {[%emt 0:04:41]} 35. Kg2 {[%emt 0:03:17]} Kd7 {[%emt 0:01:00]} 36. Rh1 {[%emt 0:04:45]} Qxb2+ {[%emt 0:01:17]} 37. Kf3 {[%emt 0:01:41]} Qf6+ {[%emt 0:01:24]} 38. Ke3 {[%emt 0:01:08]} Qxf7 {[%emt 0:00:20]} 39. Rhh8 {[%emt 0:00:03]} Ng6 {[%emt 0:00:43]} 40. Rd8+ {[%emt 0:00:06]} Kc7 {[%emt 0:00:43]} 41. Rhe8 {[%emt 0:41:06]} Ne5 {[%emt 0:41:12]} 42. Rf8 {[%emt 0:00:32]} Qg6 {[%emt 0:00:52]} 0-1

[Event "Fagernes Chess GM-Swiss 2025"]
[Site "Fagernes"]
[Date "2025.04.19"]
[Round "8.29"]
[White "Berget, Eirik"]
[Black "Halvorsen, Benjamin"]
[Result "1/2-1/2"]
[Annotator "NA RC"]
[ECO "B22"]
[WhiteElo "2041"]
[BlackElo "1966"]
[PlyCount "40"]
[EventDate "2025.04.12"]
[EventCountry "NOR"]
[SourceTitle "playchess.com"]
[Source "ChessBase"]
[SourceQuality "1"]
[TimeControl "40/6000+30:2400+30"]

1. e4 {[%emt 0:00:55]} c5 {[%emt 0:07:45]} 2. c3 {[%emt 0:01:55]} e6 {[%emt 0:05:14]} 3. d4 {[%emt 0:02:00]} d5 {[%emt 0:01:15]} 4. exd5 {[%emt 0:00:50]} exd5 {[%emt 0:00:24]} 5. Nf3 {[%emt 0:00:43]} Nf6 {[%emt 0:01:15]} 6. Bg5 {[%emt 0:02:44]} Bd6 {[%emt 0:04:53]} 7. Bd3 {[%emt 0:01:59]} O-O {[%emt 0:01:04]} 8. O-O {[%emt 0:00:21]} Bg4 {[%emt 0:03:12]} 9. Nbd2 {[%emt 0:07:24]} cxd4 {[%emt 0:04:02]} 10. cxd4 {[%emt 0:02:27]} Nc6 {[%emt 0:03:59]} 11. Qb3 {[%emt 0:07:10]} Bb4 {[%emt 0:07:03]} 12. Ne5 {[%emt 0:08:17]} Bxd2 {[%emt 0:02:28]} 13. Nxc6 {[%emt 0:00:31]} bxc6 {[%emt 0:00:27]} 14. Bxd2 {[%emt 0:00:12]} Rb8 {[%emt 0:07:37]} 15. Qc2 {[%emt 0:02:10]} Qb6 {[%emt 0:02:19]} 16. h3 {[%emt 0:12:21]} Bh5 {[%emt 0:01:48]} 17. Bf4 {[%emt 0:05:16]} Rb7 {[%emt 0:05:54]} 18. Be5 {[%emt 0:02:25]} Bg6 {[%emt 0:00:36]} 19. Bxf6 {[%emt 0:03:49]} gxf6 {[%emt 0:00:43]} 20. Bxg6 {[%emt 0:00:58]} hxg6 {[%emt 0:05:58]} 1/2-1/2

[Event "Fagernes Chess GM-Swiss 2025"]
[Site "Fagernes"]
[Date "2025.04.19"]
[Round "8.30"]
[White "Kaewpitakkun, Pantham"]
[Black "Ashwath Kaushik"]
[Result "0-1"]
[Annotator "NA RC"]
[ECO "B90"]
[WhiteElo "2026"]
[BlackElo "1958"]
[PlyCount "36"]
[EventDate "2025.04.12"]
[EventCountry "NOR"]
[SourceTitle "playchess.com"]
[Source "ChessBase"]
[SourceQuality "1"]
[TimeControl "40/6000+30:2400+30"]

1. e4 {[%emt 0:00:06]} c5 {[%emt 0:00:06]} 2. Nf3 {[%emt 0:00:05]} d6 {[%emt 0:00:07]} 3. d4 {[%emt 0:00:11]} cxd4 {[%emt 0:00:15]} 4. Nxd4 {[%emt 0:00:06]} Nf6 {[%emt 0:00:05]} 5. Nc3 {[%emt 0:00:07]} a6 {[%emt 0:00:04]} 6. Rg1 {[%emt 0:01:01]} b5 {[%emt 0:00:30]} 7. a4 {[%emt 0:00:36]} b4 {[%emt 0:00:12]} 8. Nd5 {[%emt 0:00:09]} e6 {[%emt 0:00:08]} 9. Nxf6+ {[%emt 0:01:17]} Qxf6 {[%emt 0:00:24]} 10. Be3 {[%emt 0:06:34]} Bb7 {[%emt 0:01:42]} 11. f3 {[%emt 0:03:00]} Nd7 {[%emt 0:06:24]} 12. Qd2 {[%emt 0:02:14]} Nc5 {[%emt 0:15:07]} 13. O-O-O {[%emt 0:11:42]} Rc8 {[%emt 0:03:30]} 14. Kb1 {[%emt 0:00:16]} d5 {[%emt 0:10:20]} 15. b3 {[%emt 0:12:47]} dxe4 {[%emt 0:23:57]} 16. Nc6 {[%emt 0:12:24]} Bxc6 {[%emt 0:06:29]} 17. Bg5 {[%emt 0:00:20]} e3 {[%emt 0:00:26]} 18. Qxe3 {[%emt 0:05:12]} Qc3 {[%emt 0:07:54]} 0-1

[Event "Fagernes Chess GM-Swiss 2025"]
[Site "Fagernes"]
[Date "2025.04.19"]
[Round "8.31"]
[White "Stromhaug, Kristoffer Wang"]
[Black "Kittilsen, Sigurd"]
[Result "1-0"]
[Annotator "NA RC"]
[ECO "B34"]
[WhiteElo "2020"]
[BlackElo "2010"]
[PlyCount "103"]
[EventDate "2025.04.12"]
[EventCountry "NOR"]
[SourceTitle "playchess.com"]
[Source "ChessBase"]
[SourceQuality "1"]
[TimeControl "40/6000+30:2400+30"]

1. e4 {[%emt 0:00:02]} c5 {[%emt 0:00:05]} 2. Nf3 {[%emt 0:00:15]} Nc6 {[%emt 0:00:05]} 3. d4 {[%emt 0:00:16]} cxd4 {[%emt 0:00:07]} 4. Nxd4 {[%emt 0:00:05]} Nf6 {[%emt 0:00:14]} 5. Nc3 {[%emt 0:00:12]} g6 {[%emt 0:00:08]} 6. Nxc6 {[%emt 0:00:56]} dxc6 {[%emt 0:00:44]} 7. Qxd8+ {[%emt 0:04:17]} Kxd8 {[%emt 0:00:25]} 8. Be3 {[%emt 0:08:29]} Ng4 {[%emt 0:05:01]} 9. Rd1+ {[%emt 0:08:10]} Ke8 {[%emt 0:03:29]} 10. Nb5 {[%emt 0:04:18]} Bd7 {[%emt 0:06:25]} 11. Nc7+ {[%emt 0:01:47]} Kd8 {[%emt 0:00:08]} 12. Nxa8 {[%emt 0:01:06]} Nxe3 {[%emt 0:00:35]} 13. fxe3 {[%emt 0:01:05]} Bg7 {[%emt 0:00:33]} 14. c3 {[%emt 0:03:58]} Kc8 {[%emt 0:03:39]} 15. Bc4 {[%emt 0:06:39]} Bg4 {[%emt 0:07:38]} 16. Rd2 {[%emt 0:04:06]} Kb8 {[%emt 0:08:52]} 17. h3 {[%emt 0:00:30]} Bc8 {[%emt 0:00:26]} 18. Ke2 {[%emt 0:03:13]} Kxa8 {[%emt 0:04:28]} 19. Rhd1 {[%emt 0:00:35]} Kb8 {[%emt 0:12:35]} 20. Rd8 {[%emt 0:00:41]} Kc7 {[%emt 0:00:50]} 21. Rxh8 {[%emt 0:00:08]} Bxh8 {[%emt 0:00:06]} 22. Bxf7 {[%emt 0:00:26]} Be5 {[%emt 0:03:53]} 23. Bg8 {[%emt 0:03:24]} h6 {[%emt 0:04:11]} 24. Bf7 {[%emt 0:05:47]} g5 {[%emt 0:00:19]} 25. Kf3 {[%emt 0:05:16]} a5 {[%emt 0:08:37]} 26. Bg6 {[%emt 0:04:10]} Bd7 {[%emt 0:05:27]} 27. Bf5 {[%emt 0:01:45]} e6 {[%emt 0:01:20]} 28. Bg6 {[%emt 0:01:11]} Kd8 {[%emt 0:00:54]} 29. Kg4 {[%emt 0:01:17]} Ke7 {[%emt 0:05:46]} 30. Kh5 {[%emt 0:01:03]} b5 {[%emt 0:06:11]} 31. Kxh6 {[%emt 0:02:28]} b4 {[%emt 0:06:48]} 32. cxb4 {[%emt 0:01:57]} axb4 {[%emt 0:02:38]} 33. b3 {[%emt 0:00:36]} c5 {[%emt 0:00:50]} 34. Rc1 {[%emt 0:03:52]} Bc3 {[%emt 0:01:50]} 35. Rxc3 {[%emt 0:01:39]} bxc3 {[%emt 0:00:05]} 36. e5 {[%emt 0:00:09]} Bc6 {[%emt 0:04:10]} 37. g3 {[%emt 0:00:59]} Bg2 {[%emt 0:02:13]} 38. Bc2 {[%emt 0:00:43]} Bxh3 {[%emt 0:02:35]} 39. Kxg5 {[%emt 0:00:31]} Kd7 {[%emt 0:01:34]} 40. e4 {[%emt 0:02:21]} c4 {[%emt 0:03:58]} 41. bxc4 {[%emt 0:42:13]} Bf1 {[%emt 0:40:07]} 42. Kf4 {[%emt 0:00:34]} Bxc4 {[%emt 0:00:00]} 43. a3 {[%emt 0:00:00]} Kc6 {[%emt 0:00:00]} 44. Ke3 {[%emt 0:00:00]} Kc5 {[%emt 0:00:00]} 45. g4 {[%emt 0:00:00]} Bb5 {[%emt 0:00:00]} 46. g5 {[%emt 0:00:00]} Kc4 {[%emt 0:00:00]} 47. Bd3+ {[%emt 0:00:00]} Kb3 {[%emt 0:00:00]} 48. Bxb5 {[%emt 0:00:00]} c2 {[%emt 0:00:00]} 49. Ba4+ {[%emt 0:00:00]} Kxa4 {[%emt 0:00:00]} 50. Kd2 {[%emt 0:00:00]} Kxa3 {[%emt 0:00:00]} 51. Kxc2 {[%emt 0:00:00]} Kb4 {[%emt 0:00:00]} 52. Kd3 {[%emt 0:00:00]} 1-0

[Event "Fagernes Chess GM-Swiss 2025"]
[Site "Fagernes"]
[Date "2025.04.19"]
[Round "8.32"]
[White "Den Roover, Nikolay Jorgensen"]
[Black "Wernberg, Nikolai Olsen"]
[Result "0-1"]
[Annotator "NA RC"]
[ECO "A13"]
[WhiteElo "2004"]
[BlackElo "1893"]
[PlyCount "116"]
[EventDate "2025.04.12"]
[EventCountry "NOR"]
[SourceTitle "playchess.com"]
[Source "ChessBase"]
[SourceQuality "1"]
[TimeControl "40/6000+30:2400+30"]

1. Nf3 {[%emt 0:00:03]} Nf6 {[%emt 0:00:13]} 2. c4 {[%emt 0:00:09]} e6 {[%emt 0:00:21]} 3. g3 {[%emt 0:01:05]} d5 {[%emt 0:00:50]} 4. Bg2 {[%emt 0:00:06]} d4 {[%emt 0:00:15]} 5. d3 {[%emt 0:00:45]} Nc6 {[%emt 0:00:58]} 6. O-O {[%emt 0:00:30]} Bc5 {[%emt 0:01:14]} 7. Na3 {[%emt 0:10:05]} e5 {[%emt 0:03:21]} 8. Nc2 {[%emt 0:01:16]} a5 {[%emt 0:01:13]} 9. b3 {[%emt 0:04:54]} O-O {[%emt 0:04:29]} 10. a3 {[%emt 0:13:01]} Re8 {[%emt 0:13:24]} 11. e4 {[%emt 0:28:56]} dxe3 {[%emt 0:12:41]} 12. Bxe3 {[%emt 0:01:42]} Bxe3 {[%emt 0:06:27]} 13. fxe3 {[%emt 0:01:00]} Bf5 {[%emt 0:01:48]} 14. e4 {[%emt 0:16:27]} Bg4 {[%emt 0:01:47]} 15. Ne3 {[%emt 0:03:39]} Bxf3 {[%emt 0:08:39]} 16. Rxf3 {[%emt 0:01:55]} Nd4 {[%emt 0:01:01]} 17. Rf1 {[%emt 0:01:02]} c6 {[%emt 0:01:20]} 18. Kh1 {[%emt 0:02:24]} Ne6 {[%emt 0:04:32]} 19. Ra2 {[%emt 0:02:28]} Nc5 {[%emt 0:12:38]} 20. Rd2 {[%emt 0:02:14]} a4 {[%emt 0:03:07]} 21. b4 {[%emt 0:00:33]} Nb3 {[%emt 0:00:23]} 22. Rdf2 {[%emt 0:00:24]} Nd4 {[%emt 0:08:57]} 23. h4 {[%emt 0:02:29]} c5 {[%emt 0:04:42]} 24. bxc5 {[%emt 0:01:03]} Re6 {[%emt 0:00:56]} 25. Nd5 {[%emt 0:02:43]} Nb3 {[%emt 0:02:44]} 26. Bh3 {[%emt 0:01:34]} Rc6 {[%emt 0:00:45]} 27. Nxf6+ {[%emt 0:00:34]} gxf6 {[%emt 0:01:38]} 28. Bf5 {[%emt 0:03:49]} Nxc5 {[%emt 0:01:52]} 29. Qh5 {[%emt 0:02:39]} Kf8 {[%emt 0:02:51]} 30. Qxh7 {[%emt 0:01:20]} Nxd3 {[%emt 0:02:24]} 31. Rd2 {[%emt 0:00:45]} Rxc4 {[%emt 0:01:14]} 32. Kh2 {[%emt 0:00:56]} Ke7 {[%emt 0:02:15]} 33. Bg6 Qg8 {[%emt 0:00:07]} 34. Qxg8 Rxg8 {[%emt 0:00:15]} 35. Bxf7 {[%emt 0:04:33]} Kxf7 {[%emt 0:00:25]} 36. Rxd3 {[%emt 0:00:03]} Rxe4 {[%emt 0:00:44]} 37. Rd7+ {[%emt 0:00:13]} Ke6 {[%emt 0:01:19]} 38. Rxb7 {[%emt 0:00:07]} Re2+ {[%emt 0:00:33]} 39. Kh3 {[%emt 0:00:27]} Re3 {[%emt 0:00:59]} 40. Rb6+ {[%emt 0:00:52]} Kd5 {[%emt 0:00:44]} 41. Rg1 {[%emt 0:40:45]} f5 {[%emt 0:42:09]} 42. h5 {[%emt 0:00:00]} f4 {[%emt 0:00:00]} 43. Rg6 {[%emt 0:00:00]} Rxg6 {[%emt 0:00:00]} 44. hxg6 {[%emt 0:00:00]} Ke6 {[%emt 0:00:00]} 45. g7 {[%emt 0:00:00]} Kf7 {[%emt 0:00:00]} 46. Kh4 {[%emt 0:00:00]} Rxg3 {[%emt 0:00:00]} 47. Rxg3 {[%emt 0:00:00]} fxg3 {[%emt 0:00:00]} 48. g8=Q+ {[%emt 0:00:00]} Kxg8 {[%emt 0:00:00]} 49. Kxg3 {[%emt 0:00:00]} Kf7 {[%emt 0:00:00]} 50. Kf3 {[%emt 0:00:00]} Ke6 {[%emt 0:00:00]} 51. Ke3 {[%emt 0:00:00]} Kd5 {[%emt 0:00:00]} 52. Kd3 {[%emt 0:00:00]} e4+ {[%emt 0:00:00]} 53. Ke3 {[%emt 0:00:00]} Ke5 {[%emt 0:00:00]} 54. Ke2 {[%emt 0:00:00]} Kd4 {[%emt 0:00:00]} 55. Kd2 {[%emt 0:00:00]} e3+ {[%emt 0:00:00]} 56. Ke2 {[%emt 0:00:00]} Ke4 {[%emt 0:00:00]} 57. Ke1 {[%emt 0:00:00]} Kd3 {[%emt 0:00:00]} 58. Kd1 {[%emt 0:00:00]} Kc3 {[%emt 0:00:00]} 0-1

[Event "Fagernes Chess GM-Swiss 2025"]
[Site "Fagernes"]
[Date "2025.04.19"]
[Round "8.33"]
[White "Gasland, Lukas Dominik"]
[Black "Strand, Amund Pihl"]
[Result "1-0"]
[Annotator "NA RC"]
[ECO "D36"]
[WhiteElo "1994"]
[BlackElo "1914"]
[PlyCount "81"]
[EventDate "2025.04.12"]
[EventCountry "NOR"]
[SourceTitle "playchess.com"]
[Source "ChessBase"]
[SourceQuality "1"]
[TimeControl "40/6000+30:2400+30"]

1. d4 {[%emt 0:00:35]} d5 {[%emt 0:00:17]} 2. c4 {[%emt 0:00:15]} Nf6 {[%emt 0:00:09]} 3. Nc3 {[%emt 0:00:37]} e6 {[%emt 0:00:08]} 4. Bg5 {[%emt 0:00:09]} Be7 {[%emt 0:00:09]} 5. cxd5 {[%emt 0:00:41]} exd5 {[%emt 0:00:09]} 6. e3 {[%emt 0:00:07]} c6 {[%emt 0:01:51]} 7. Bd3 {[%emt 0:01:47]} O-O {[%emt 0:01:07]} 8. Qc2 {[%emt 0:00:51]} Nbd7 {[%emt 0:02:40]} 9. Nge2 {[%emt 0:03:14]} Re8 {[%emt 0:01:01]} 10. O-O {[%emt 0:04:37]} Nf8 {[%emt 0:05:30]} 11. f3 {[%emt 0:02:28]} Nh5 {[%emt 0:22:19]} 12. Bxe7 {[%emt 0:04:00]} Qxe7 {[%emt 0:03:16]} 13. e4 {[%emt 0:00:35]} Be6 {[%emt 0:04:30]} 14. Rae1 {[%emt 0:08:04]} Rad8 {[%emt 0:05:07]} 15. e5 {[%emt 0:05:35]} g6 {[%emt 0:18:00]} 16. f4 {[%emt 0:06:06]} Ng7 {[%emt 0:00:10]} 17. Ng3 {[%emt 0:02:03]} f5 {[%emt 0:07:14]} 18. Na4 {[%emt 0:10:09]} Bc8 {[%emt 0:01:23]} 19. Ne2 {[%emt 0:05:53]} Nge6 {[%emt 0:00:41]} 20. Rc1 {[%emt 0:00:49]} Nd7 {[%emt 0:00:51]} 21. Nac3 {[%emt 0:06:35]} Nb6 {[%emt 0:03:37]} 22. Qb3 {[%emt 0:02:19]} Kh8 {[%emt 0:02:42]} 23. a4 {[%emt 0:04:32]} Rg8 {[%emt 0:04:48]} 24. a5 {[%emt 0:02:32]} Nc4 {[%emt 0:04:40]} 25. Bxc4 {[%emt 0:09:23]} dxc4 {[%emt 0:00:05]} 26. Qxc4 {[%emt 0:00:20]} g5 {[%emt 0:01:09]} 27. d5 {[%emt 0:01:04]} Nxf4 {[%emt 0:02:36]} 28. Nxf4 {[%emt 0:06:16]} gxf4 {[%emt 0:00:07]} 29. Qxf4 {[%emt 0:00:45]} cxd5 {[%emt 0:00:34]} 30. Qd4 {[%emt 0:05:33]} Be6 {[%emt 0:04:04]} 31. Ne2 {[%emt 0:02:26]} Rg4 {[%emt 0:04:44]} 32. Nf4 {[%emt 0:02:18]} a6 {[%emt 0:01:35]} 33. Qb6 {[%emt 0:02:04]} Bg8 {[%emt 0:02:49]} 34. Rc7 {[%emt 0:05:31]} Qxe5 {[%emt 0:01:16]} 35. Rxb7 {[%emt 0:00:43]} Re8 {[%emt 0:02:17]} 36. Qxa6 {[%emt 0:01:45]} d4 {[%emt 0:02:14]} 37. Rd7 {[%emt 0:01:40]} Bc4 {[%emt 0:02:32]} 38. Qxc4 {[%emt 0:01:48]} Rxf4 {[%emt 0:00:23]} 39. Rxf4 {[%emt 0:00:55]} Qxf4 {[%emt 0:00:40]} 40. Qxd4+ {[%emt 0:00:41]} Qxd4+ {[%emt 0:00:10]} 41. Rxd4 {[%emt 0:40:03]} 1-0

[Event "Fagernes Chess GM-Swiss 2025"]
[Site "Fagernes"]
[Date "2025.04.20"]
[Round "9.1"]
[White "Urkedal, Frode Olav Olsen"]
[Black "Kantor, Gergely"]
[Result "1/2-1/2"]
[Annotator "ChessBase"]
[ECO "E36"]
[WhiteElo "2550"]
[BlackElo "2578"]
[PlyCount "129"]
[EventDate "2025.04.12"]
[EventCountry "NOR"]
[SourceTitle "playchess.com"]
[Source "ChessBase"]
[SourceQuality "1"]
[TimeControl "40/6000+30:2400+30"]

1. d4 {[%emt 0:06:51]} Nf6 {[%emt 0:00:03]} 2. c4 {[%emt 0:00:03]} e6 {[%emt 0:00:02]} 3. Nc3 {[%emt 0:00:03]} Bb4 {[%emt 0:00:04]} 4. Nf3 {[%emt 0:00:17]} O-O {[%emt 0:00:13]} 5. Qc2 {[%emt 0:00:55]} d5 {[%emt 0:01:17]} 6. a3 {[%emt 0:00:48]} Bxc3+ {[%emt 0:00:11]} 7. Qxc3 {[%emt 0:00:08]} dxc4 {[%emt 0:00:36]} 8. Qxc4 {[%emt 0:00:07]} b6 {[%emt 0:00:17]} 9. h4 Bb7 {[%emt 0:32:35]} 10. Bf4 {[%emt 0:02:48]} c5 {[%emt 0:10:32]} 11. dxc5 {[%emt 0:00:12]} Bd5 {[%emt 0:00:07]} 12. Qc2 {[%emt 0:00:27]} bxc5 {[%emt 0:07:33]} 13. Nd2 {[%emt 0:00:09]} Nc6 {[%emt 0:02:30]} 14. e3 {[%emt 0:00:12]} Qa5 {[%emt 0:08:40]} 15. Bd6 {[%emt 0:26:05]} Rfd8 {[%emt 0:04:15]} 16. Qxc5 {[%emt 0:14:41]} Rxd6 {[%emt 0:01:17]} 17. Qxd6 {[%emt 0:00:05]} Qxd2+ {[%emt 0:05:20]} 18. Kxd2 {[%emt 0:00:04]} Ne4+ {[%emt 0:00:02]} 19. Ke1 {[%emt 0:00:16]} Nxd6 {[%emt 0:00:03]} 20. b4 {[%emt 0:04:10]} Ne5 {[%emt 0:05:29]} 21. Rc1 {[%emt 0:00:09]} Nec4 {[%emt 0:12:38]} 22. Bxc4 {[%emt 0:14:51]} Bxc4 {[%emt 0:04:10]} 23. e4 {[%emt 0:00:32]} e5 {[%emt 0:01:33]} 24. Rh3 {[%emt 0:01:07]} Kf8 {[%emt 0:07:59]} 25. Rhc3 {[%emt 0:03:38]} Rc8 {[%emt 0:00:16]} 26. a4 {[%emt 0:15:06]} Ke7 {[%emt 0:00:08]} 27. b5 {[%emt 0:00:14]} Kd7 {[%emt 0:00:52]} 28. Rd1 {[%emt 0:00:05]} Ke7 {[%emt 0:03:20]} 29. Rdc1 {[%emt 0:00:53]} Kd7 {[%emt 0:01:00]} 30. Rd1 {[%emt 0:00:56]} Ke6 {[%emt 0:01:43]} 31. Rdc1 {[%emt 0:01:16]} g6 {[%emt 0:00:35]} 32. f3 {[%emt 0:05:53]} f5 {[%emt 0:00:11]} 33. a5 {[%emt 0:01:27]} Rc5 {[%emt 0:00:39]} 34. b6 {[%emt 0:00:06]} axb6 {[%emt 0:00:07]} 35. axb6 {[%emt 0:00:03]} Kd7 {[%emt 0:00:30]} 36. exf5 {[%emt 0:01:26]} gxf5 {[%emt 0:00:04]} 37. b7 {[%emt 0:00:09]} Kc7 {[%emt 0:00:34]} 38. g4 {[%emt 0:04:00]} fxg4 {[%emt 0:00:11]} 39. fxg4 {[%emt 0:00:05]} Kxb7 {[%emt 0:00:04]} 40. g5 {[%emt 0:01:10]} Kc6 {[%emt 0:02:06]} 41. h5 {[%emt 0:40:55]} e4 {[%emt 0:15:00]} 42. g6 {[%emt 0:00:00]} Rxh5 {[%emt 0:06:10]} 43. Rxc4+ {[%emt 0:00:00]} Nxc4 {[%emt 0:00:04]} 44. Rxc4+ {[%emt 0:00:00]} Kd5 {[%emt 0:00:05]} 45. g7 {[%emt 0:00:00]} Rg5 {[%emt 0:00:28]} 46. Rc7 {[%emt 0:00:00]} h5 {[%emt 0:06:18]} 47. Ra7 {[%emt 0:00:00]} Kd4 {[%emt 0:01:44]} 48. Kf2 {[%emt 0:00:00]} Rg6 {[%emt 0:05:54]} 49. Ra4+ {[%emt 0:00:00]} Ke5 {[%emt 0:00:21]} 50. Ra7 {[%emt 0:00:00]} h4 {[%emt 0:01:38]} 51. Re7+ {[%emt 0:00:00]} Kf4 {[%emt 0:01:43]} 52. Rf7+ {[%emt 0:00:00]} Kg4 {[%emt 0:00:37]} 53. Re7 {[%emt 0:00:00]} Kf4 {[%emt 0:01:03]} 54. Rf7+ {[%emt 0:00:00]} Kg5 {[%emt 0:00:54]} 55. Re7 {[%emt 0:00:00]} Kf5 {[%emt 0:00:52]} 56. Rf7+ {[%emt 0:00:00]} Ke5 {[%emt 0:00:09]} 57. Re7+ {[%emt 0:00:00]} Kd5 {[%emt 0:00:42]} 58. Ke3 {[%emt 0:00:00]} Rg4 {[%emt 0:03:28]} 59. g8=Q+ {[%emt 0:00:00]} Rxg8 {[%emt 0:00:02]} 60. Rxe4 {[%emt 0:00:00]} Rh8 {[%emt 0:00:52]} 61. Kf3 {[%emt 0:00:00]} h3 {[%emt 0:00:28]} 62. Re1 {[%emt 0:00:00]} h2 {[%emt 0:00:16]} 63. Kg2 {[%emt 0:00:00]} h1=N {[%emt 0:00:13]} 64. Rxh1 {[%emt 0:00:00]} Rxh1 {[%emt 0:00:02]} 65. Kxh1 {[%emt 0:00:06]} 1/2-1/2